fUST/lending_fUST_20250910
["ID","MTS","AMOUNT","RATE_DAILY","PERIOD"]
[384652261,1757501443775,-530.87637315,0.00014472,2]
[384652262,1757501443784,-160.0,0.00014472,2]
[384652263,1757501443794,-233.08191698,0.00014472,2]
[384652264,1757501443802,-160.0,0.00014472,2]
[384652265,1757501443812,-203.30414021,0.00014472,2]
[384652266,1757501443821,-846.88337432,0.00014472,2]
[384652267,1757501443830,-160.0,0.00014472,2]
[384652268,1757501443840,-160.0,0.00014472,2]
[384652269,1757501443849,-217.67150996,0.00014487,2]
[384652270,1757501443859,-160.0,0.00014489,2]
[384652271,1757501443869,-15340.00145398,0.00014507,2]
[384652272,1757501443878,-2798.51,0.00014519,2]
[384652273,1757501443888,-187.08055172,0.0001452,2]
[384652274,1757501443897,-480.0,0.0001452,2]
[384652275,1757501443907,-1720.17,0.0001452,2]
[384652276,1757501443916,-480.0,0.0001452,2]
[384652277,1757501443925,-690.93,0.0001452,2]
[384652278,1757501443935,-480.0,0.0001452,2]
[384652279,1757501443944,-690.36,0.0001452,2]
[384652280,1757501443953,-480.0,0.0001452,2]
[384652281,1757501443962,-480.0,0.0001452,2]
[384652282,1757501443973,-3420.3,0.0001452,2]
[384652283,1757501443982,-1921.5,0.0001452,2]
[384652284,1757501443992,-500.0,0.0001452,2]
[384652285,1757501444000,-221.0,0.0001452,2]
[384652286,1757501444015,-157.0,0.0001452,2]
[384652287,1757501444025,-480.0,0.0001452,2]
[384652288,1757501444034,-480.0,0.0001452,2]
[384652289,1757501444044,-480.0,0.0001452,2]
[384652290,1757501444053,-283.93754192,0.00014628,2]
[384652291,1757501444062,-10581.05038389,0.00014648,2]
[384652292,1757501444071,-158.15064,0.00014648,2]
[384652293,1757501444080,-151.0,0.00014648,2]
[384652294,1757501444090,-151.0,0.00014648,2]
[384652295,1757501444099,-151.0,0.00014648,2]
[384652296,1757501444109,-151.0,0.00014648,2]
[384652297,1757501444118,-292.451516,0.00014648,2]
[384652298,1757501444128,-151.0,0.00014648,2]
[384652299,1757501444137,-151.0,0.00014648,2]
[384652300,1757501444147,-151.0,0.00014648,2]
[384652301,1757501444156,-151.0,0.00014648,2]
[384652302,1757501444165,-500.0,0.00014794,2]
[384652303,1757501444175,-480.0,0.00014794,2]
[384652304,1757501444184,-1720.17,0.00014794,2]
[384652305,1757501444193,-480.0,0.00014794,2]
[384652306,1757501444203,-690.93,0.00014794,2]
[384652307,1757501444212,-480.0,0.00014794,2]
[384652308,1757501444222,-690.36,0.00014794,2]
[384652309,1757501444231,-480.0,0.00014794,2]
[384652310,1757501444241,-480.0,0.00014794,2]
[384652311,1757501444250,-3420.3,0.00014794,2]
[384652312,1757501444260,-1921.5,0.00014794,2]
[384652313,1757501444270,-480.0,0.00014794,2]
[384652314,1757501444280,-480.0,0.00014794,2]
[384652315,1757501444290,-480.0,0.00014794,2]
[384652316,1757501444300,-160.0,0.00015,2]
[384652317,1757501444309,-151.0,0.0001501,2]
[384652318,1757501444318,-151.0,0.0001501,2]
[384652319,1757501444327,-420.0,0.0001501,2]
[384652320,1757501444336,-2798.51,0.00015067,2]
[384652321,1757501444346,-500.0,0.00015068,2]
[384652322,1757501444355,-480.0,0.00015068,2]
[384652323,1757501444365,-1720.17,0.00015068,2]
[384652324,1757501444375,-480.0,0.00015068,2]
[384652325,1757501444385,-690.93,0.00015068,2]
[384652326,1757501444395,-480.0,0.00015068,2]
[384652327,1757501444404,-690.36,0.00015068,2]
[384652328,1757501444414,-480.0,0.00015068,2]
[384652329,1757501444423,-480.0,0.00015068,2]
[384652330,1757501444434,-3420.3,0.00015068,2]
[384652331,1757501444444,-1921.5,0.00015068,2]
[384652332,1757501444459,-480.0,0.00015068,2]
[384652333,1757501444469,-480.0,0.00015068,2]
[384652334,1757501444479,-480.0,0.00015068,2]
[384652335,1757501444488,-434.362267,0.00015068,2]
[384652336,1757501444498,-9424.57000992,0.00015183,2]
[384652337,1757501444508,-500.0,0.00015234,2]
[384652338,1757501444517,-500.0,0.00015234,2]
[384652339,1757501444526,-500.0,0.00015283,2]
[384652340,1757501444536,-500.0,0.00015342,2]
[384652341,1757501444545,-151.0,0.00015342,2]
[384652342,1757501444554,-151.0,0.00015342,2]
[384652343,1757501444564,-151.0,0.00015342,2]
[384652344,1757501444573,-151.0,0.00015342,2]
[384652345,1757501444583,-151.0,0.00015342,2]
[384652346,1757501444592,-151.0,0.00015342,2]
[384652347,1757501444601,-151.0,0.00015342,2]
[384652348,1757501444610,-480.0,0.00015342,2]
[384652349,1757501444620,-151.0,0.00015342,2]
[384652350,1757501444629,-1720.17,0.00015342,2]
[384652351,1757501444639,-480.0,0.00015342,2]
[384652352,1757501444653,-690.93,0.00015342,2]
[384652353,1757501444663,-480.0,0.00015342,2]
[384652354,1757501444672,-690.36,0.00015342,2]
[384652355,1757501444682,-480.0,0.00015342,2]
[384652356,1757501444692,-480.0,0.00015342,2]
[384652357,1757501444702,-3420.3,0.00015342,2]
[384652358,1757501444712,-1921.5,0.00015342,2]
[384652359,1757501444722,-480.0,0.00015342,2]
[384652360,1757501444732,-480.0,0.00015342,2]
[384652361,1757501444742,-480.0,0.00015342,2]
[384652362,1757501444751,-155.0,0.00015367,2]
[384652363,1757501444760,-283.93754192,0.00015386,2]
[384652364,1757501444769,-500.0,0.00015576,2]
[384652365,1757501444778,-2798.51,0.00015615,2]
[384652366,1757501444787,-151.0,0.00015615,2]
[384652367,1757501444797,-151.0,0.00015615,2]
[384652368,1757501444806,-151.0,0.00015615,2]
[384652369,1757501444815,-151.0,0.00015615,2]
[384652370,1757501444825,-151.0,0.00015615,2]
[384652371,1757501444834,-500.0,0.00015616,2]
[384652372,1757501444843,-480.0,0.00015616,2]
[384652373,1757501444853,-1720.17,0.00015616,2]
[384652374,1757501444863,-480.0,0.00015616,2]
[384652375,1757501444872,-690.93,0.00015616,2]
[384652376,1757501444882,-480.0,0.00015616,2]
[384652377,1757501444892,-690.36,0.00015616,2]
[384652378,1757501444901,-480.0,0.00015616,2]
[384652379,1757501444911,-480.0,0.00015616,2]
[384652380,1757501444920,-3420.3,0.00015616,2]
[384652381,1757501444929,-1921.5,0.00015616,2]
[384652382,1757501444938,-480.0,0.00015616,2]
[384652383,1757501444947,-480.0,0.00015616,2]
[384652384,1757501444957,-480.0,0.00015616,2]
[384652385,1757501444966,-720.0,0.00015674,2]
[384652386,1757501445087,-1000.0,0.00015782,2]
[384652387,1757501445097,-1000.0,0.00015782,2]
[384652388,1757501445106,-1000.0,0.00015831,2]
[384652389,1757501445116,-221.72815651,0.0001589,2]
[384652390,1757501445125,-259.586075,0.0001589,2]
[384652391,1757501445134,-480.0,0.0001589,2]
[384652392,1757501445144,-1720.17,0.0001589,2]
[384652393,1757501445153,-480.0,0.0001589,2]
[384652394,1757501445162,-690.93,0.0001589,2]
[384652395,1757501445171,-480.0,0.0001589,2]
[384652396,1757501445180,-690.36,0.0001589,2]
[384652397,1757501445189,-480.0,0.0001589,2]
[384652398,1757501445198,-480.0,0.0001589,2]
[384652399,1757501445207,-3420.3,0.0001589,2]
[384652400,1757501445217,-1921.5,0.0001589,2]
[384652401,1757501445228,-480.0,0.0001589,2]
[384652402,1757501445237,-480.0,0.0001589,2]
[384652403,1757501445246,-480.0,0.0001589,2]
[384652404,1757501445255,-155.0,0.00015971,2]
[384652405,1757501445265,-212.2231088,0.00016,2]
[384652406,1757501445274,-160.0,0.00016,3]
[384652407,1757501445283,-530.87637315,0.00016,3]
[384652408,1757501445292,-203.30414021,0.00016,3]
[384652409,1757501445301,-904.72672874,0.00016124,2]
[384652410,1757501445310,-283.93754192,0.00016143,2]
[384652411,1757501445319,-2798.51,0.00016163,2]
[384652412,1757501445329,-480.0,0.00016164,2]
[384652413,1757501445338,-151.0,0.00016164,2]
[384652414,1757501445347,-1720.17,0.00016164,2]
[384652415,1757501445356,-330.38,0.00016164,2]
[384652416,1757501445365,-690.93,0.00016164,2]
[384652417,1757501445374,-480.0,0.00016164,2]
[384652418,1757501445384,-690.36,0.00016164,2]
[384652419,1757501445393,-394.92406315,0.00016164,2]
[384652420,1757501445402,-518.13,0.00016164,2]
[384652421,1757501445411,-3420.3,0.00016164,2]
[384652422,1757501445421,-1921.5,0.00016164,2]
[384652423,1757501445429,-480.0,0.00016164,2]
[384652424,1757501445439,-480.0,0.00016164,2]
[384652425,1757501445448,-557.71,0.00016164,2]
[384652426,1757501445457,-151.0,0.000162,2]
[384652427,1757501445466,-151.0,0.00016215,2]
[384652428,1757501445475,-151.0,0.00016215,2]
[384652429,1757501445484,-486.79677378,0.0001633,2]
[384652430,1757501445494,-357.84785817,0.00016377,2]
[384652431,1757501445503,-1939.83010285,0.00016438,2]
[384652432,1757501445512,-501.49351186,0.00016438,2]
[384652433,1757501445521,-151.0,0.00016438,2]
[384652434,1757501445531,-500.0,0.00016438,2]
[384652435,1757501445540,-500.0,0.00016438,2]
[384652436,1757501445550,-500.0,0.00016438,2]
[384652437,1757501445560,-500.0,0.00016438,2]
[384652438,1757501445569,-500.0,0.00016438,2]
[384652439,1757501445578,-500.0,0.00016438,2]
[384652440,1757501445587,-500.0,0.00016438,2]
[384652441,1757501445596,-500.0,0.00016438,2]
[384652442,1757501445606,-500.0,0.00016438,2]
[384652443,1757501445615,-500.0,0.00016438,2]
[384652444,1757501445624,-310.2831703,0.00016438,2]
[384652445,1757501445633,-151.0,0.00016438,2]
[384652446,1757501445643,-151.0,0.00016438,2]
[384652447,1757501445652,-381.45182998,0.00016438,2]
[384652448,1757501445662,-670.5294682,0.00016438,2]
[384652449,1757501445673,-500.0,0.00016438,2]
[384652450,1757501445682,-2682.11787281,0.00016438,2]
[384652451,1757501445691,-151.0,0.00016438,2]
[384652452,1757501445701,-4360.25311367,0.00016438,2]
[384652453,1757501445710,-226.4,0.00016438,2]
[384652454,1757501445719,-1720.17,0.00016438,2]
[384652455,1757501445729,-690.93,0.00016438,2]
[384652456,1757501445738,-6028.73044862,0.00016438,2]
[384652457,1757501445748,-384.7732114,0.00016438,2]
[384652458,1757501445757,-690.36,0.00016438,2]
[384652459,1757501445766,-3420.3,0.00016438,2]
[384652460,1757501445775,-1921.5,0.00016438,2]
[384652461,1757501445784,-151.0,0.00016438,2]
[384652462,1757501445793,-161.1272,0.00016438,2]
[384652463,1757501445801,-480.0,0.00016438,2]
[384652464,1757501445810,-480.0,0.00016438,2]
[384652465,1757501445819,-151.0,0.00016438,2]
[384652466,1757501445829,-151.0,0.00016438,2]
[384652467,1757501445838,-151.0,0.00016438,2]
[384652468,1757501445847,-151.0,0.00016438,2]
[384652469,1757501445856,-151.0,0.00016438,2]
[384652470,1757501445866,-151.0,0.00016438,2]
[384652471,1757501445875,-205.3789,0.00016438,2]
[384652472,1757501445884,-151.0,0.00016438,2]
[384652473,1757501445894,-151.0,0.00016438,2]
[384652474,1757501445904,-151.0,0.00016438,2]
[384652475,1757501445916,-151.0,0.00016438,2]
[384652476,1757501445926,-151.0,0.00016438,2]
[384652477,1757501445935,-151.0,0.00016438,2]
[384652478,1757501445944,-226.219108,0.00016438,2]
[384652479,1757501445953,-226.219108,0.00016438,2]
[384652480,1757501445962,-226.219108,0.00016438,2]
[384652481,1757501445971,-226.219108,0.00016438,2]
[384652482,1757501445979,-226.219108,0.00016438,2]
[384652483,1757501445988,-226.219108,0.00016438,2]
[384652484,1757501445997,-226.219108,0.00016438,2]
[384652485,1757501446006,-226.219108,0.00016438,2]
[384652486,1757501446015,-226.219108,0.00016438,2]
[384652487,1757501446024,-226.219108,0.00016438,2]
[384652488,1757501446033,-226.219108,0.00016438,2]
[384652489,1757501446042,-226.219108,0.00016438,2]
[384652490,1757501446051,-587.0,0.0001645,2]
[384652491,1757501446059,-2798.51,0.00016581,2]
[384652492,1757501446068,-2798.51,0.00016611,2]
[384652493,1757501446077,-2003.96807341,0.00016668,2]
[384652494,1757501446086,-500.0,0.00016712,2]
[384652495,1757501446095,-296.453552,0.00016712,2]
[384652496,1757501446104,-1720.17,0.00016712,2]
[384652497,1757501446113,-690.93,0.00016712,2]
[384652498,1757501446122,-690.36,0.00016712,2]
[384652499,1757501446131,-3420.3,0.00016712,2]
[384652500,1757501446140,-1921.5,0.00016712,2]
[384652501,1757501446149,-151.0,0.00016712,2]
[384652502,1757501446158,-226.219108,0.00016712,2]
[384652503,1757501446167,-575.23,0.00016712,2]
[384652504,1757501446176,-226.219108,0.00016712,2]
[384652505,1757501446185,-480.0,0.00016712,2]
[384652506,1757501446194,-226.219108,0.00016712,2]
[384652507,1757501446203,-226.219108,0.00016712,2]
[384652508,1757501446213,-151.0,0.000169,2]
[384652509,1757501446222,-151.0,0.000169,2]
[384652510,1757501446230,-151.0,0.000169,2]
[384652511,1757501446239,-168.454573,0.000169,2]
[384652512,1757501446248,-283.93754192,0.000169,2]
[384652513,1757501446258,-2798.51,0.00016972,2]
[384652514,1757501446267,-500.85853806,0.00016986,2]
[384652515,1757501446276,-1720.17,0.00016986,2]
[384652516,1757501446285,-690.93,0.00016986,2]
[384652517,1757501446294,-690.36,0.00016986,2]
[384652518,1757501446304,-3420.3,0.00016986,2]
[384652519,1757501446313,-1921.5,0.00016986,2]
[384652520,1757501446322,-480.0,0.00016986,2]
[384652521,1757501446331,-151.0,0.00016999,2]
[384652522,1757501446341,-151.0,0.00016999,2]
[384652523,1757501446350,-151.0,0.00016999,2]
[384652524,1757501446358,-154.306594,0.00016999,2]
[384652525,1757501446368,-2798.51,0.00016999,2]
[384652526,1757501446377,-2798.51,0.00016999,2]
[384652527,1757501446386,-2798.51,0.00016999,2]
[384652528,1757501446395,-2798.51,0.00016999,2]
[384652529,1757501446405,-2798.51,0.00016999,2]
[384652530,1757501446414,-2798.51,0.00016999,2]
[384652531,1757501446423,-2798.51,0.00016999,2]
[384652532,1757501446432,-2798.68084415,0.00016999,2]
[384652533,1757501446441,-151.0,0.00016999,2]
[384652534,1757501446450,-104834.47556752,0.00017,2]
[384652535,1757501446458,-499.99,0.00017,2]
[384652536,1757501446468,-151.0,0.00017,2]
[384652537,1757501446478,-151.0,0.00017,2]
[384652538,1757501446487,-151.0,0.00017,2]
[384652539,1757501446496,-172.314232,0.00017,2]
[384652540,1757501446505,-151.0,0.00017,2]
[384652541,1757501446514,-151.0,0.00017,2]
[384652542,1757501446524,-151.0,0.00017,2]
[384652543,1757501446532,-226.219108,0.00017,2]
[384652544,1757501446542,-226.219108,0.00017,2]
[384652545,1757501446551,-226.219108,0.00017,2]
[384652546,1757501446561,-226.219112,0.00017,2]
[384652547,1757501446570,-151.0,0.000171,2]
[384652548,1757501446579,-226.4,0.00017216,2]
[384652549,1757501446588,-864.0,0.00017242,2]
[384652550,1757501446598,-1720.17,0.0001726,2]
[384652551,1757501446607,-690.93,0.0001726,2]
[384652552,1757501446616,-690.36,0.0001726,2]
[384652553,1757501446625,-3420.3,0.0001726,2]
[384652554,1757501446634,-1921.5,0.0001726,2]
[384652555,1757501446647,-480.0,0.0001726,2]
[384652556,1757501446657,-1720.17,0.00017534,2]
[384652557,1757501446666,-690.93,0.00017534,2]
[384652558,1757501446675,-690.36,0.00017534,2]
[384652559,1757501446684,-3420.3,0.00017534,2]
[384652560,1757501446694,-1921.5,0.00017534,2]
[384652561,1757501446704,-480.0,0.00017534,2]
[384652562,1757501446713,-1720.17,0.00017808,2]
[384652563,1757501446723,-690.93,0.00017808,2]
[384652564,1757501446732,-690.36,0.00017808,2]
[384652565,1757501446742,-3420.3,0.00017808,2]
[384652566,1757501446751,-1921.5,0.00017808,2]
[384652567,1757501446760,-480.0,0.00017808,2]
[384652568,1757501446769,-151.0,0.000179,2]
[384652569,1757501446778,-226.4,0.00017995,2]
[384652570,1757501446786,-1720.17,0.00018082,2]
[384652571,1757501446796,-690.93,0.00018082,2]
[384652572,1757501446804,-690.36,0.00018082,2]
[384652573,1757501446813,-3420.3,0.00018082,2]
[384652574,1757501446822,-1921.5,0.00018082,2]
[384652575,1757501446831,-480.0,0.00018082,2]
[384652576,1757501446840,-151.0,0.000181,2]
[384652577,1757501446849,-259.586075,0.0001816,2]
[384652578,1757501446858,-1720.17,0.00018356,2]
[384652579,1757501446867,-690.93,0.00018356,2]
[384652580,1757501446876,-690.36,0.00018356,2]
[384652581,1757501446885,-3420.3,0.00018356,2]
[384652582,1757501446894,-1921.5,0.00018356,2]
[384652583,1757501446903,-480.0,0.00018356,2]
[384652584,1757501446912,-434.362267,0.00018493,2]
[384652585,1757501446921,-151.0,0.0001863,2]
[384652586,1757501446931,-151.0,0.0001863,2]
[384652587,1757501446940,-1720.17,0.0001863,2]
[384652588,1757501446949,-690.93,0.0001863,2]
[384652589,1757501446957,-690.36,0.0001863,2]
[384652590,1757501446966,-3420.3,0.0001863,2]
[384652591,1757501446975,-1921.5,0.0001863,2]
[384652592,1757501446984,-480.0,0.0001863,2]
[384652593,1757501446993,-151.0,0.000187,2]
[384652594,1757501447002,-226.4,0.00018773,2]
[384652595,1757501447012,-151.0,0.00018904,2]
[384652596,1757501447021,-151.0,0.00018904,2]
[384652597,1757501447030,-151.0,0.00018904,2]
[384652598,1757501447039,-1720.17,0.00018904,2]
[384652599,1757501447048,-690.93,0.00018904,2]
[384652600,1757501447057,-690.36,0.00018904,2]
[384652601,1757501447065,-3420.3,0.00018904,2]
[384652602,1757501447075,-1921.5,0.00018904,2]
[384652603,1757501447083,-480.0,0.00018904,2]
[384652604,1757501447093,-500.0,0.00019044,2]
[384652605,1757501447102,-200.10347603,0.00019044,2]
[384652606,1757501447111,-228.88622494,0.00019044,2]
[384652607,1757501447120,-500.0,0.000191,2]
[384652608,1757501447129,-500.0,0.0001915,2]
[384652609,1757501447138,-450.21276711,0.0001915,2]
[384652610,1757501447147,-500.5717242,0.0001915,2]
[384652611,1757501447156,-599.02317176,0.0001916,2]
[384652612,1757501447165,-1720.17,0.00019178,2]
[384652613,1757501447174,-690.93,0.00019178,2]
[384652614,1757501447184,-690.36,0.00019178,2]
[384652615,1757501447193,-3420.3,0.00019178,2]
[384652616,1757501447201,-1921.5,0.00019178,2]
[384652617,1757501447210,-480.0,0.00019178,2]
[384652618,1757501447219,-201.26884193,0.00019213,2]
[384652619,1757501447228,-500.87717278,0.00019213,2]
[384652620,1757501447237,-416.07470665,0.00019233,2]
[384652621,1757501447246,-501.60607529,0.00019233,2]
[384652622,1757501447255,-500.0,0.00019233,2]
[384652623,1757501447264,-500.0,0.00019243,2]
[384652624,1757501447273,-158.07470497,0.00019243,2]
[384652625,1757501447282,-158.07470665,0.00019243,2]
[384652626,1757501447291,-160.03894072,0.00019243,2]
[384652627,1757501447300,-151.0,0.000193,2]
[384652628,1757501447310,-1720.17,0.00019452,2]
[384652629,1757501447319,-690.93,0.00019452,2]
[384652630,1757501447328,-690.36,0.00019452,2]
[384652631,1757501447337,-3420.3,0.00019452,2]
[384652632,1757501447347,-1921.5,0.00019452,2]
[384652633,1757501447356,-457.8739254,0.00019452,2]
[384652634,1757501447366,-151.0,0.000195,2]
[384652635,1757501447375,-3000.0,0.0001952,2]
[384652636,1757501447384,-226.4,0.00019551,2]
[384652637,1757501447393,-500.71844632,0.00019592,2]
[384652638,1757501447403,-1000.0,0.00019648,2]
[384652639,1757501447412,-500.16418023,0.00019698,2]
[384652640,1757501447421,-151.0,0.000197,2]
[384652641,1757501447430,-1720.17,0.00019726,2]
[384652642,1757501447440,-690.93,0.00019726,2]
[384652643,1757501447449,-690.36,0.00019726,2]
[384652644,1757501447458,-3420.3,0.00019726,2]
[384652645,1757501447467,-1921.5,0.00019726,2]
[384652646,1757501447476,-1000.0,0.00019781,2]
[384652647,1757501447486,-1000.0,0.00019791,2]
[384652648,1757501447495,-15100.87046672,0.000199,2]
[384652649,1757501447504,-500.0,0.00019973,2]
[384652650,1757501447513,-500.0,0.00019973,2]
[384652651,1757501447522,-500.0,0.00019973,2]
[384652652,1757501447531,-500.0,0.00019973,2]
[384652653,1757501447540,-500.75422995,0.00019973,2]
[384652654,1757501447549,-501.19101178,0.00019973,2]
[384652655,1757501447558,-500.2389297,0.00019973,2]
[384652656,1757501447567,-500.57286962,0.00019973,2]
[384652657,1757501447576,-1209.0,0.0002,7]
[384652658,1757501447586,-14455.39100615,0.0002,2]
[384652659,1757501447594,-365.43295588,0.0002,2]
[384652660,1757501447603,-20000.0,0.0002,2]
[384652661,1757501447612,-1201.59213517,0.0002,2]
[384652662,1757501447925,-480.0,0.0001452,2]
[384652663,1757501447935,-480.0,0.0001452,2]
[384652664,1757501447943,-480.0,0.00014794,2]
[384652665,1757501447952,-480.0,0.00014794,2]
[384652666,1757501447962,-480.0,0.00015068,2]
[384652667,1757501447972,-480.0,0.00015068,2]
[384652668,1757501447982,-480.0,0.00015342,2]
[384652669,1757501447991,-480.0,0.00015342,2]
[384652670,1757501448000,-480.0,0.00015616,2]
[384652671,1757501448010,-480.0,0.00015616,2]
[384652672,1757501448020,-484.95752571,0.00015616,2]
[384652673,1757501448029,-480.0,0.0001589,2]
[384652674,1757501448038,-480.0,0.0001589,2]
[384652675,1757501448047,-480.0,0.00016164,2]
[384652676,1757501448056,-37.37411738,0.00016164,2]
[384652677,1757501448175,-184.11073457,0.00013561,2]
[384652678,1757501452860,-182.53642221,0.00013698,2]
[384652679,1757501474317,-172.72673596,0.00013561,2]
[384652680,1757501474339,-29.67216342,0.00013698,2]
[384652681,1757501475819,-8.36963549,0.00013698,2]
[384652682,1757501475844,-365.35409073,0.00013698,2]
[384652683,1757501476763,-114.64590927,0.00013698,2]
[384652684,1757501476785,-250.70818146,0.00013698,2]
[384652686,1757501533288,1000.0,0.00018595,20]
[384652692,1757501672241,50000.0,0.00024,30]
[384652707,1757501787409,498.381275,0.00027397,120]
[384652715,1757502102849,-781.56421659,0.00013598,2]
[384652716,1757502102880,-751.31355251,0.00013598,2]
[384652717,1757502102911,-300.0,0.00013697,2]
[384652718,1757502102941,-480.0,0.00013698,2]
[384652719,1757502102973,-480.0,0.00013698,2]
[384652720,1757502103002,-480.0,0.00013698,2]
[384652721,1757502103034,-475.65811632,0.00013698,2]
[384652722,1757502103063,-480.0,0.00013698,2]
[384652723,1757502103095,-408.59163898,0.00013698,2]
[384652724,1757502103125,-242.56960056,0.00013698,2]
[384652725,1757502103290,-240.61575008,0.00013698,2]
[384652726,1757502103318,-480.0,0.00013698,2]
[384652727,1757502103347,-480.0,0.00013698,2]
[384652728,1757502103379,-480.0,0.00013698,2]
[384652729,1757502103410,-480.0,0.00013698,2]
[384652730,1757502103442,-480.0,0.00013698,2]
[384652731,1757502103617,-480.0,0.00013698,2]
[384652732,1757502103646,-480.0,0.00013698,2]
[384652733,1757502103674,-483.06228816,0.00013698,2]
[384652734,1757502103702,-480.0,0.00013698,2]
[384652735,1757502103731,-392.65392352,0.00013698,2]
[384652736,1757502103856,-87.34607648,0.00013698,2]
[384652737,1757502103884,-491.25713811,0.00013698,2]
[384652738,1757502103913,-511.02898782,0.00013698,2]
[384652739,1757502103941,-486.34592129,0.00013698,2]
[384652740,1757502103969,-499.69598493,0.00013698,2]
[384652741,1757502103996,-480.0,0.00013698,2]
[384652742,1757502104025,-480.0,0.00013698,2]
[384652743,1757502104057,-434.17603552,0.00013698,2]
[384652744,1757502104086,-480.0,0.00013698,2]
[384652745,1757502104115,-480.0,0.00013698,2]
[384652746,1757502104142,-411.46741871,0.00013698,2]
[384652747,1757502104189,-325.27805406,0.00013698,2]
[384652748,1757502104216,-480.0,0.00013698,2]
[384652749,1757502104244,-480.0,0.00013698,2]
[384652750,1757502104273,-480.0,0.00013698,2]
[384652751,1757502104301,-480.0,0.00013698,2]
[384652752,1757502104329,-301.58532875,0.00013698,2]
[384652753,1757502104359,-532.16396793,0.00013698,2]
[384652754,1757502104389,-480.0,0.00013698,2]
[384652755,1757502104417,-592.30809318,0.00013698,2]
[384652756,1757502104444,-480.0,0.00013698,2]
[384652757,1757502104474,-269.0440339,0.00013698,2]
[384652758,1757502104641,-480.0,0.00013698,2]
[384652759,1757502104670,-480.0,0.00013698,2]
[384652760,1757502104699,-480.0,0.00013698,2]
[384652761,1757502104729,-480.0,0.00013698,2]
[384652762,1757502104760,-480.0,0.00013698,2]
[384652763,1757502104791,-480.0,0.00013698,2]
[384652764,1757502104821,-480.0,0.00013698,2]
[384652765,1757502104851,-480.0,0.00013698,2]
[384652766,1757502104881,-480.0,0.00013698,2]
[384652767,1757502104909,-480.0,0.00013698,2]
[384652768,1757502105110,-480.0,0.00013698,2]
[384652769,1757502105139,-480.0,0.00013698,2]
[384652770,1757502105168,-480.0,0.00013698,2]
[384652771,1757502105197,-480.0,0.00013698,2]
[384652772,1757502105226,-480.0,0.00013698,2]
[384652773,1757502105255,-480.0,0.00013698,2]
[384652774,1757502105284,-480.0,0.00013698,2]
[384652775,1757502105316,-423.58,0.00013698,2]
[384652776,1757502105409,-2432.85,0.00013698,2]
[384652777,1757502105437,-480.0,0.00013698,2]
[384652778,1757502105560,-480.0,0.00013698,2]
[384652779,1757502105588,-480.0,0.00013698,2]
[384652780,1757502105617,-480.0,0.00013698,2]
[384652781,1757502105647,-540.77,0.00013698,2]
[384652782,1757502105730,-480.0,0.00013698,2]
[384652783,1757502105760,-480.0,0.00013698,2]
[384652784,1757502105789,-480.0,0.00013698,2]
[384652785,1757502105819,-480.0,0.00013698,2]
[384652786,1757502105848,-480.0,0.00013698,2]
[384652787,1757502105879,-480.0,0.00013698,2]